fUSD/lending_fUSD_20260606
["ID","MTS","AMOUNT","RATE_DAILY","PERIOD"]
[424282110,1780743041000,-1000.0,0.00012583,2]
[424282098,1780743041000,-1348.0,0.00012055,5]
[424282130,1780743041000,-200.0,0.00013699,2]
[424282164,1780743041000,-1156.32,0.000148,2]
[424282141,1780743041000,-166.66,0.00013973,2]
[424282167,1780743041000,-4000.0,0.000149,2]
[424282158,1780743041000,-500.0,0.00014452,2]
[424282162,1780743041000,-17480.82189345,0.000147,2]
[424282165,1780743041000,-350.0,0.00014805,2]
[424282170,1780743041000,-305.41714996,0.0001496,2]
[424282179,1780743041000,-300.0,0.00014999,2]
[424282168,1780743041000,-1166.85856356,0.000149,2]
[424282172,1780743041000,-166.66,0.00014986,2]
[424282174,1780743041000,-1672.7364795,0.00014995,2]
[424282171,1780743041000,-1263.24391144,0.0001496,2]
[424282177,1780743041000,-1000.0,0.00014999,2]
[424282178,1780743041000,-300.0,0.00014999,2]
[424282180,1780743041000,-300.0,0.00014999,2]
[424282169,1780743041000,-287.35110565,0.000149,2]
[424282173,1780743041000,-1148.61238259,0.00014995,2]
[424282176,1780743041000,-1000.0,0.00014999,2]
[424282175,1780743041000,-250.0,0.00014999,2]
[424282182,1780743041000,-1916868.97426098,0.00015,2]
[424282181,1780743041000,-300.0,0.00014999,2]
[424282161,1780743041000,-2322.0,0.0001468,2]
[424282135,1780743041000,-166.66,0.00013836,2]
[424282157,1780743041000,-500.0,0.00014452,2]
[424282166,1780743041000,-200.0,0.00014879,2]
[424282140,1780743041000,-1555.5,0.00013899,2]
[424282137,1780743041000,-2000.0,0.00013855,2]
[424282138,1780743041000,-200.0,0.00013885,2]
[424282151,1780743041000,-200.0,0.00014365,2]
[424282152,1780743041000,-166.66,0.00014384,2]
[424282153,1780743041000,-1107.63007,0.00014447,2]
[424282145,1780743041000,-500.0,0.00014178,2]
[424282154,1780743041000,-1613.0535,0.00014447,2]
[424282163,1780743041000,-22913.3524,0.00014781,2]
[424282146,1780743041000,-500.0,0.00014178,2]
[424282142,1780743041000,-250.0,0.00014,2]
[424282144,1780743041000,-166.66,0.00014137,2]
[424282143,1780743041000,-166.66,0.0001411,2]
[424282148,1780743041000,-166.66,0.00014247,2]
[424282147,1780743041000,-621.009,0.00014178,2]
[424282150,1780743041000,-2322.0,0.0001436,2]
[424282149,1780743041000,-350.0,0.0001432,2]
[424282156,1780743041000,-500.0,0.00014452,2]
[424282159,1780743041000,-350.0,0.00014525,2]
[424282160,1780743041000,-166.66,0.00014561,2]
[424282155,1780743041000,-500.0,0.00014452,2]
[424282189,1780743042000,-250.50608891,0.00015,2]
[424282187,1780743042000,-2399.26464521,0.00015,2]
[424282188,1780743042000,-872.84991566,0.00015,2]
[424282195,1780743043000,-1784.01009705,0.00015,2]
[424282203,1780743046000,-3642.0,0.00012488,2]
[424282204,1780743046000,-9.8089778,0.00015,2]
[424282214,1780743285000,1000.0,0.0003013,120]
[424282215,1780743304000,213.19,0.00030082,120]
[424282216,1780743507000,150.0,0.00030136,120]
[424282217,1780743644000,1000.0,0.0003013,120]
[424282231,1780743892000,-501.94695074,7.525e-05,2]
[424282230,1780743892000,-500.0,7.525e-05,2]
[424282229,1780743892000,-215.80795776,7.525e-05,2]
[424282228,1780743892000,-150.0,7.506e-05,2]
[424282223,1780743892000,-234.14641643,7.43e-05,2]
[424282227,1780743892000,-277.73533521,7.444e-05,2]
[424282232,1780743892000,-500.0,7.525e-05,2]
[424282225,1780743892000,-250.0,7.432e-05,2]
[424282224,1780743892000,-150.0,7.431e-05,2]
[424282226,1780743892000,-193.0,7.433e-05,2]
[424282234,1780743892000,-500.0,7.525e-05,2]
[424282233,1780743892000,-500.0,7.525e-05,2]
[424282237,1780743892000,-500.0,7.525e-05,2]
[424282247,1780743892000,-15.38105448,7.525e-05,2]
[424282246,1780743892000,-500.0,7.525e-05,2]
[424282235,1780743892000,-500.0,7.525e-05,2]
[424282244,1780743892000,-606.86472421,7.525e-05,2]
[424282243,1780743892000,-500.0,7.525e-05,2]
[424282241,1780743892000,-500.0,7.525e-05,2]
[424282245,1780743892000,-500.0,7.525e-05,2]
[424282242,1780743892000,-500.0,7.525e-05,2]
[424282239,1780743892000,-500.0,7.525e-05,2]
[424282236,1780743892000,-405.11756117,7.525e-05,2]
[424282238,1780743892000,-500.0,7.525e-05,2]
[424282240,1780743892000,-500.0,7.525e-05,2]
[424282256,1780743893000,-500.0,7.525e-05,2]
[424282249,1780743893000,-500.0,7.525e-05,2]
[424282248,1780743893000,-484.61894552,7.525e-05,2]
[424282250,1780743893000,-500.0,7.525e-05,2]
[424282251,1780743893000,-500.0,7.525e-05,2]
[424282253,1780743893000,-500.0,7.525e-05,2]
[424282252,1780743893000,-500.0,7.525e-05,2]
[424282254,1780743893000,-500.0,7.525e-05,2]
[424282255,1780743893000,-500.0,7.525e-05,2]
[424282264,1780743893000,-500.0,7.525e-05,2]
[424282260,1780743893000,-500.0,7.525e-05,2]
[424282259,1780743893000,-500.0,7.525e-05,2]
[424282258,1780743893000,-500.0,7.525e-05,2]
[424282261,1780743893000,-500.0,7.525e-05,2]
[424282262,1780743893000,-500.0,7.525e-05,2]
[424282263,1780743893000,-500.0,7.525e-05,2]
[424282265,1780743893000,-500.0,7.525e-05,2]
[424282267,1780743893000,-500.0,7.525e-05,2]
[424282266,1780743893000,-500.0,7.525e-05,2]
[424282257,1780743893000,-500.0,7.525e-05,2]
[424282268,1780743894000,-15.38105448,7.525e-05,2]
[424282269,1780743894000,-484.61894552,7.525e-05,2]
[424282270,1780743894000,-500.0,7.525e-05,2]
[424282272,1780743894000,-500.0,7.525e-05,2]
[424282273,1780743894000,-500.0,7.525e-05,2]
[424282271,1780743894000,-500.0,7.525e-05,2]
[424282280,1780743895000,-500.0,7.525e-05,2]
[424282274,1780743895000,-500.0,7.525e-05,2]
[424282275,1780743895000,-500.0,7.525e-05,2]
[424282276,1780743895000,-500.0,7.525e-05,2]
[424282277,1780743895000,-500.0,7.525e-05,2]
[424282279,1780743895000,-500.0,7.525e-05,2]
[424282282,1780743895000,-500.0,7.525e-05,2]
[424282281,1780743895000,-500.0,7.525e-05,2]
[424282283,1780743895000,-500.0,7.525e-05,2]
[424282278,1780743895000,-500.0,7.525e-05,2]
[424282286,1780743895000,-500.0,7.525e-05,2]
[424282284,1780743895000,-500.0,7.525e-05,2]
[424282289,1780743895000,-15.38105448,7.526e-05,2]
[424282288,1780743895000,-500.0,7.525e-05,2]
[424282287,1780743895000,-500.0,7.525e-05,2]
[424282294,1780743895000,-8932.28184194,7.527e-05,2]
[424282290,1780743895000,-284.61894552,7.526e-05,2]
[424282292,1780743895000,-279.48478909,7.526e-05,2]
[424282291,1780743895000,-241.97324151,7.526e-05,2]
[424282293,1780743895000,-261.64118194,7.526e-05,2]
[424282285,1780743895000,-500.0,7.525e-05,2]
[424282296,1780743896000,-299.99,7.527e-05,2]
[424282295,1780743896000,-1067.70815806,7.527e-05,2]
[424282297,1780743896000,-500.0,7.53e-05,2]
[424282299,1780743896000,-150.99,7.53e-05,2]
[424282298,1780743896000,-3681.54,7.53e-05,2]
[424282301,1780743896000,-10000.0,7.53e-05,2]
[424282304,1780743896000,-3204.204,7.584e-05,2]
[424282303,1780743896000,-150.0,7.581e-05,2]
[424282302,1780743896000,-6535.17425806,7.53e-05,2]
[424282305,1780743896000,-110.62174194,7.584e-05,2]
[424282300,1780743896000,-4299.77184194,7.53e-05,2]
[424282306,1780743897000,-57.23425806,7.584e-05,2]
[424282308,1780743949000,-10000.0,7.63e-05,2]
[424282309,1780743950000,-10000.0,7.63e-05,2]
[424282310,1780743951000,-10000.0,7.63e-05,2]
[424282311,1780743952000,-10000.0,7.63e-05,2]
[424282314,1780743953000,-10000.0,7.63e-05,2]
[424282313,1780743953000,-10000.0,7.63e-05,2]
[424282312,1780743953000,-10000.0,7.63e-05,2]
[424282315,1780743953000,-10000.0,7.63e-05,2]
[424282317,1780743954000,-500.0,7.525e-05,2]
[424282316,1780743954000,-500.0,7.525e-05,2]
[424282321,1780743954000,-500.0,7.525e-05,2]
[424282319,1780743954000,-8500.0,7.63e-05,2]
[424282322,1780743954000,-600.6042661,7.525e-05,2]
[424282318,1780743954000,-500.0,7.525e-05,2]
[424282320,1780743954000,-500.0,7.525e-05,2]
[424282327,1780743954000,-10000.0,7.63e-05,2]
[424282325,1780743954000,-500.0,7.525e-05,2]
[424282323,1780743954000,-500.0,7.525e-05,2]
[424282324,1780743954000,-500.0,7.525e-05,2]
[424282326,1780743954000,-6899.3957339,7.63e-05,2]
[424282330,1780743955000,-10000.0,7.63e-05,2]
[424282329,1780743955000,-10000.0,7.63e-05,2]
[424282328,1780743955000,-10000.0,7.63e-05,2]
[424282331,1780743956000,-10000.0,7.63e-05,2]
[424282333,1780743956000,-10000.0,7.63e-05,2]
[424282332,1780743956000,-10000.0,7.63e-05,2]
[424282336,1780743957000,-10000.0,7.63e-05,2]
[424282334,1780743957000,-10000.0,7.63e-05,2]
[424282335,1780743957000,-10000.0,7.63e-05,2]
[424282339,1780743958000,-10000.0,7.63e-05,2]
[424282338,1780743958000,-10000.0,7.63e-05,2]
[424282337,1780743958000,-10000.0,7.63e-05,2]
[424282340,1780743959000,-10000.0,7.63e-05,2]
[424282342,1780743959000,-10000.0,7.63e-05,2]
[424282341,1780743959000,-10000.0,7.63e-05,2]
[424282343,1780743960000,-10000.0,7.63e-05,2]
[424282344,1780743961000,-10000.0,7.63e-05,2]
[424282345,1780743964000,-10000.0,7.63e-05,2]
[424282346,1780743965000,-10000.0,7.63e-05,2]
[424282347,1780743971000,-5000.0,7.63e-05,2]
[424282348,1780743999000,1000.0,0.0003013,120]
[424282350,1780744042000,-180.36064764,7.629e-05,2]
[424282349,1780744042000,-195.63935236,7.629e-05,2]
[424282353,1780744065000,108588.35491317,0.00030137,120]
[424282354,1780744111000,-2.78817971,7.629e-05,2]
[424282355,1780744111000,-169.38126906,7.629e-05,2]
[424282357,1780744111000,-4296.62736458,7.63e-05,2]
[424282356,1780744111000,-4250.27886225,7.63e-05,2]
[424282358,1780744134000,1000.0,0.00030137,120]
[424282365,1780744137000,-500.0,7.628e-05,2]
[424282359,1780744137000,-500.0,7.628e-05,2]
[424282361,1780744137000,-500.0,7.628e-05,2]
[424282364,1780744137000,-500.0,7.628e-05,2]
[424282362,1780744137000,-500.0,7.628e-05,2]
[424282363,1780744137000,-500.0,7.628e-05,2]
[424282367,1780744137000,-500.0,7.628e-05,2]
[424282360,1780744137000,-500.0,7.628e-05,2]
[424282368,1780744137000,-96.82982453,7.628e-05,2]
[424282374,1780744137000,-500.0,7.628e-05,2]
[424282373,1780744137000,-500.0,7.628e-05,2]
[424282375,1780744137000,-273.45307189,7.628e-05,2]
[424282366,1780744137000,-500.0,7.628e-05,2]
[424282372,1780744137000,-500.0,7.628e-05,2]
[424282370,1780744137000,-500.0,7.628e-05,2]
[424282369,1780744137000,-403.17017547,7.628e-05,2]
[424282371,1780744137000,-500.0,7.628e-05,2]
[424282381,1780744161000,-500.0,7.628e-05,2]
[424282376,1780744161000,-300.0,7.627e-05,2]
[424282377,1780744161000,-226.54692811,7.628e-05,2]
[424282379,1780744161000,-500.0,7.628e-05,2]
[424282378,1780744161000,-500.0,7.628e-05,2]
[424282380,1780744161000,-500.0,7.628e-05,2]
[424282382,1780744161000,-500.0,7.628e-05,2]
[424282384,1780744161000,-500.0,7.628e-05,2]
[424282385,1780744161000,-500.0,7.628e-05,2]
[424282386,1780744161000,-225.75195786,7.628e-05,2]
[424282388,1780744161000,-500.0,7.628e-05,2]
[424282387,1780744161000,-274.24804214,7.628e-05,2]
[424282390,1780744161000,-500.0,7.628e-05,2]
[424282391,1780744161000,-496.72101867,7.628e-05,2]
[424282389,1780744161000,-500.0,7.628e-05,2]
[424282392,1780744161000,-500.0,7.628e-05,2]
[424282393,1780744161000,-10.74721173,7.628e-05,2]
[424282383,1780744161000,-500.0,7.628e-05,2]
[424282417,1780744187000,-489.25278827,7.628e-05,2]
[424282416,1780744187000,-150.0,7.628e-05,2]
[424282420,1780744188000,-243.69323925,7.629e-05,2]
[424282418,1780744188000,-599.67210187,7.628e-05,2]
[424282419,1780744188000,-500.0,7.629e-05,2]
[424282423,1780744188000,-500.0,7.629e-05,2]
[424282422,1780744188000,-500.0,7.629e-05,2]
[424282424,1780744188000,-500.0,7.629e-05,2]
[424282426,1780744188000,-204.30707136,7.63e-05,2]
[424282425,1780744188000,-920.36105975,7.63e-05,2]
[424282421,1780744188000,-500.0,7.629e-05,2]
[424282434,1780744232000,-23764.98960806,7.53e-05,2]
[424282432,1780744232000,-15935.05418931,7.53e-05,2]
[424282433,1780744232000,-342122.46512153,7.53e-05,2]
[424282431,1780744232000,-113397.60449623,7.53e-05,2]
[424282430,1780744232000,-11502.42115636,7.53e-05,2]
[424282478,1780744241000,-500.0,8.393e-05,2]
[424282493,1780744241000,-2000.0,8.88e-05,2]
[424282491,1780744241000,-1000.0,8.82e-05,2]
[424282470,1780744241000,-3054.40953513,8.393e-05,2]
[424282487,1780744241000,-167.44660901,8.393e-05,2]
[424282485,1780744241000,-300.0,8.393e-05,2]
[424282504,1780744241000,-323.4483873,0.00010198,2]
[424282482,1780744241000,-579.23172925,8.393e-05,2]
[424282489,1780744241000,-193.0,8.393e-05,2]
[424282506,1780744241000,-200.0,0.00010507,2]
[424282501,1780744241000,-233.76,0.00010027,2]
[424282508,1780744241000,-150.0,0.00010959,2]
[424282510,1780744241000,-2796.22636689,0.00011099,2]
[424282514,1780744241000,-2796.22636688,0.00011099,2]
[424282512,1780744241000,-2796.22636688,0.00011099,2]
[424282497,1780744241000,-2000.0,9.99e-05,2]
[424282499,1780744241000,-170.18226877,0.0001,2]
[424282518,1780744241000,-2796.22636688,0.00011099,2]
[424282516,1780744241000,-2796.22636688,0.00011099,2]
[424282495,1780744241000,-480.0,9.229e-05,2]
[424282476,1780744241000,-500.0,8.393e-05,2]
[424282443,1780744241000,-1991932.97542851,7.53e-05,2]
[424282472,1780744241000,-250.0,8.393e-05,2]
[424282442,1780744241000,-1344.49,7.53e-05,2]
[424282448,1780744241000,-3371.907133,8.178e-05,2]
[424282520,1780744241000,-3669.93405365,0.00011099,2]
[424282444,1780744241000,-250.0,7.643e-05,2]
[424282447,1780744241000,-82650.18645677,8e-05,2]
[424282445,1780744241000,-215.80795776,7.656e-05,2]
[424282446,1780744241000,-216.0,7.703e-05,2]
[424282449,1780744241000,-500.0,8.219e-05,2]
[424282454,1780744241000,-500.0,8.219e-05,2]
[424282450,1780744241000,-500.0,8.219e-05,2]
[424282452,1780744241000,-429.28820467,8.219e-05,2]
[424282455,1780744241000,-500.0,8.219e-05,2]
[424282461,1780744241000,-500.0,8.219e-05,2]
[424282453,1780744241000,-500.0,8.219e-05,2]
[424282451,1780744241000,-500.0,8.219e-05,2]
[424282463,1780744241000,-250.0,8.39e-05,2]
[424282466,1780744241000,-420.0,8.39e-05,2]
[424282457,1780744241000,-500.0,8.219e-05,2]
[424282459,1780744241000,-500.0,8.219e-05,2]
[424282468,1780744241000,-4000.0,8.393e-05,2]
[424282474,1780744241000,-500.0,8.393e-05,2]
[424282480,1780744241000,-500.0,8.393e-05,2]
[424282534,1780744241000,-168.73,0.00011489,2]
[424282546,1780744241000,-2790.09,0.0001196,2]
[424282532,1780744241000,-1852.42,0.00011464,2]
[424282579,1780744241000,-150.0,0.00012654,2]
[424282586,1780744241000,-1358.0,0.00012654,2]
[424282585,1780744241000,-150.0,0.00012654,2]
[424282589,1780744241000,-382.0,0.00012654,2]
[424282591,1780744241000,-3669.93405365,0.00013262,2]
[424282593,1780744241000,-2796.22636688,0.00013265,2]
[424282595,1780744241000,-2000.0,0.00013321,2]
[424282530,1780744241000,-2000.0,0.000111,2]
[424282607,1780744241000,-324.66255205,0.00013698,2]
[424282575,1780744241000,-150.0,0.00012654,2]
[424282608,1780744241000,-200.0,0.00013699,2]
[424282605,1780744241000,-166.66,0.00013641,2]
[424282601,1780744241000,-1030.0,0.00013383,2]
[424282609,1780744241000,-166.66,0.00013699,2]
[424282603,1780744241000,-1500.0,0.00013383,2]
[424282612,1780744241000,-1068.11,0.00013931,2]
[424282613,1780744241000,-1555.5,0.00013931,2]
[424282610,1780744241000,-171.11417309,0.00013699,2]
[424282611,1780744241000,-166.66,0.00013836,2]
[424282614,1780744241000,-166.66,0.00013973,2]
[424282599,1780744241000,-15734.3303296,0.00013332,2]
[424282573,1780744241000,-150.0,0.00012654,2]
[424282596,1780744241000,-57699.0807243,0.00013332,2]
[424282581,1780744241000,-150.0,0.00012654,2]
[424282577,1780744241000,-150.0,0.00012654,2]
[424282522,1780744241000,-3669.93405365,0.00011099,2]
[424282524,1780744241000,-3669.93405365,0.00011099,2]
[424282528,1780744241000,-3669.93405365,0.00011099,2]
[424282526,1780744241000,-3669.93405365,0.00011099,2]
[424282542,1780744241000,-716.42,0.00011708,2]
[424282540,1780744241000,-2796.22636688,0.0001163,2]
[424282538,1780744241000,-3669.93405365,0.00011624,2]
[424282545,1780744241000,-7942.99,0.000119,2]
[424282548,1780744241000,-1227.0,0.00012104,2]
[424282536,1780744241000,-150.0,0.00011489,2]
[424282559,1780744241000,-3669.93405365,0.00012443,2]
[424282557,1780744241000,-213.19,0.00012329,2]
[424282571,1780744241000,-150.0,0.00012654,2]
[424282562,1780744241000,-877.0,0.00012443,5]
[424282569,1780744241000,-199.5,0.00012628,2]
[424282583,1780744241000,-150.0,0.00012654,2]
[424282564,1780744241000,-2796.22636688,0.00012447,2]
[424282566,1780744241000,-1341.0,0.00012607,5]
[424282555,1780744241000,-2000.0,0.00012211,2]
[424282550,1780744241000,-3642.0,0.00012104,2]
[424282553,1780744241000,-6073.0,0.00012104,2]
[424282626,1780744242000,-1107.63007,0.00014479,2]
[424282640,1780744242000,-200.0,0.0001488,2]
[424282636,1780744242000,-10000.0,0.00014835,2]
[424282628,1780744242000,-169.65,0.00014485,2]
[424282639,1780744242000,-200.0,0.0001488,2]
[424282638,1780744242000,-200.0,0.00014879,2]
[424282629,1780744242000,-169.65,0.00014485,2]
[424282625,1780744242000,-166.66,0.00014384,2]
[424282623,1780744242000,-270.76026787,0.00014294,2]
[424282621,1780744242000,-166.66,0.00014247,2]
[424282620,1780744242000,-152.0,0.00014213,7]
[424282622,1780744242000,-361.92566866,0.00014294,2]
[424282616,1780744242000,-3669.93405365,0.00014081,2]
[424282624,1780744242000,-350.0,0.00014346,2]
[424282627,1780744242000,-1613.0535,0.00014479,2]
[424282618,1780744242000,-166.66,0.00014092,2]
[424282617,1780744242000,-2796.22636688,0.00014082,2]
[424282615,1780744242000,-250.0,0.00014,2]
[424282633,1780744242000,-1000.0,0.000147,2]
[424282619,1780744242000,-166.66,0.0001411,2]
[424282630,1780744242000,-166.66,0.00014542,2]
[424282644,1780744242000,-1263.24391144,0.0001496,2]
[424282637,1780744242000,-151.92,0.00014848,2]
[424282631,1780744242000,-350.0,0.00014615,2]
[424282656,1780744242000,-300.0,0.00014999,2]
[424282655,1780744242000,-300.0,0.00014999,2]
[424282651,1780744242000,-300.0,0.00014999,2]
[424282648,1780744242000,-166.66,0.00014992,2]
[424282650,1780744242000,-1000.0,0.00014999,2]
[424282652,1780744242000,-300.0,0.00014999,2]
[424282649,1780744242000,-250.0,0.00014999,2]
[424282653,1780744242000,-300.0,0.00014999,2]
[424282657,1780744242000,-1378400.93326345,0.00015,2]
[424282647,1780744242000,-15000.0,0.0001499,2]
[424282646,1780744242000,-151.0,0.00014986,2]
[424282645,1780744242000,-151.0,0.00014986,2]
[424282654,1780744242000,-379.76203495,0.00014999,2]
[424282643,1780744242000,-305.41714996,0.0001496,2]
[424282641,1780744242000,-3669.93405365,0.000149,2]
[424282634,1780744242000,-350.0,0.0001471,2]
[424282632,1780744242000,-17480.82189345,0.000147,2]
[424282635,1780744242000,-1156.32,0.000148,2]
[424282642,1780744242000,-2796.22636688,0.000149,2]
[424282660,1780744243000,-0.23170157,0.00015,2]
[424282661,1780744243000,3907.45,0.00030137,120]
[424282677,1780744246000,-576.47645733,0.000149,2]
[424282675,1780744246000,-419.0,0.00012104,2]
[424282676,1780744246000,-129.62115526,0.000149,2]
[424282680,1780744350000,1000.0,0.0003013,120]
[424282683,1780744699000,1000.0,0.0003013,120]
[424282684,1780744836000,428.32322113,0.0001,3]
[424282685,1780744921000,3938.77790159,0.0003013,120]
[424282688,1780745049000,1000.0,0.0003013,120]
[424282689,1780745101000,177.66,0.00030082,120]
[424282692,1780745274000,5503.90727563,0.00030082,120]
[424282698,1780745337000,-150.0,7.468e-05,2]
[424282694,1780745337000,-162.82,7.394e-05,2]
[424282695,1780745337000,-150.0,7.394e-05,2]
[424282693,1780745337000,-250.0,7.392e-05,2]
[424282696,1780745337000,-250.0,7.441e-05,2]
[424282697,1780745337000,-200.0,7.467e-05,2]
[424282699,1780745337000,-300.0,7.522e-05,2]
[424282707,1780745337000,-265.74230645,7.523e-05,2]
[424282701,1780745337000,-500.0,7.523e-05,2]
[424282702,1780745337000,-500.19045237,7.523e-05,2]
[424282704,1780745337000,-500.0,7.523e-05,2]
[424282703,1780745337000,-500.0,7.523e-05,2]
[424282706,1780745337000,-351.32873821,7.523e-05,2]
[424282705,1780745337000,-500.12650637,7.523e-05,2]
[424282700,1780745337000,-150.0,7.522e-05,2]
[424282708,1780745338000,-500.0,7.523e-05,2]
[424282710,1780745338000,-500.0,7.523e-05,2]
[424282709,1780745338000,-500.0,7.523e-05,2]
[424282711,1780745338000,-274.11977791,7.523e-05,2]
[424282713,1780745338000,-134.53098277,7.523e-05,2]
[424282712,1780745338000,-500.0,7.523e-05,2]
[424282721,1780745363000,-500.0,7.523e-05,2]
[424282720,1780745363000,-500.0,7.523e-05,2]
[424282719,1780745363000,-500.0,7.523e-05,2]
[424282718,1780745363000,-500.0,7.523e-05,2]
[424282716,1780745363000,-365.46901723,7.523e-05,2]
[424282717,1780745363000,-500.0,7.523e-05,2]
[424282726,1780745364000,-90.14788435,7.523e-05,2]
[424282723,1780745364000,-500.0,7.523e-05,2]
[424282725,1780745364000,-241.773855,7.523e-05,2]
[424282722,1780745364000,-500.0,7.523e-05,2]
[424282728,1780745364000,-500.0,7.523e-05,2]
[424282724,1780745364000,-500.0,7.523e-05,2]
[424282730,1780745364000,-500.0,7.523e-05,2]
[424282733,1780745364000,-500.0,7.523e-05,2]
[424282732,1780745364000,-500.0,7.523e-05,2]
[424282727,1780745364000,-500.0,7.523e-05,2]
[424282731,1780745364000,-500.0,7.523e-05,2]
[424282729,1780745364000,-293.08026954,7.523e-05,2]
[424282734,1780745364000,-99.62591623,7.523e-05,2]
[424282744,1780745389000,2522.633,0.0003,120]
[424282745,1780745393000,1000.0,0.0003013,120]
[424282748,1780745432000,-5989.96558138,7.424e-05,2]
[424282750,1780745432000,-626.3807768,7.424e-05,2]
[424282751,1780745432000,-2637.53624611,7.424e-05,2]
[424282753,1780745432000,-163.58195102,7.424e-05,2]
[424282754,1780745432000,-271.90586894,7.424e-05,2]
[424282749,1780745432000,-683.18712388,7.424e-05,2]
[424282755,1780745432000,-811.50471421,7.424e-05,2]
[424282765,1780745432000,-194734.82046497,7.424e-05,2]
[424282769,1780745432000,-253.46543089,7.424e-05,2]
[424282760,1780745432000,-130012.42954938,7.424e-05,2]
[424282752,1780745432000,-4473.41933109,7.424e-05,2]
[424282758,1780745432000,-425437.8284389,7.424e-05,2]
[424282767,1780745432000,-1254.41808677,7.424e-05,2]
[424282762,1780745432000,-86968.42173424,7.424e-05,2]
[424282820,1780745438000,-1170.0,7.424e-05,2]
[424282819,1780745438000,-567.55422407,7.424e-05,2]
[424282810,1780745438000,-2903.13387152,7.424e-05,2]
[424282846,1780745439000,-3568.85180875,7.424e-05,2]
[424282843,1780745439000,-508.52575966,7.424e-05,2]
[424282844,1780745439000,-4413.73135356,7.424e-05,2]
[424282842,1780745439000,-1718.32,7.424e-05,2]
[424282840,1780745439000,-760.11851838,7.424e-05,2]
[424282841,1780745439000,-6187.64401634,7.424e-05,2]
[424282845,1780745439000,-535.41792625,7.424e-05,2]
[424282852,1780745440000,-1514.86166025,7.424e-05,2]
[424282853,1780745440000,-2874.02810723,7.424e-05,2]
[424282851,1780745440000,-311.98467859,7.424e-05,2]
[424282854,1780745440000,-652.08200092,7.424e-05,2]
[424282856,1780745440000,-595.85768052,7.424e-05,2]
[424282857,1780745440000,-2962.65685451,7.424e-05,2]
[424282858,1780745440000,-654.44803642,7.424e-05,2]
[424282855,1780745440000,-404.75,7.424e-05,2]
[424282873,1780745441000,-3164.15,7.628e-05,2]
[424282874,1780745441000,-215.80795776,7.635e-05,2]
[424282880,1780745441000,-193.0,8.131e-05,2]
[424282878,1780745441000,-418.58,7.841e-05,2]
[424282884,1780745441000,-500.0,8.219e-05,2]
[424282881,1780745441000,-3371.907133,8.178e-05,2]
[424282879,1780745441000,-250.0,8.128e-05,2]
[424282882,1780745441000,-716.42,8.219e-05,2]
[424282888,1780745441000,-3054.40953513,8.275e-05,2]
[424282886,1780745441000,-193.98753391,8.275e-05,2]
[424282899,1780745441000,-1000.0,8.676e-05,2]
[424282885,1780745441000,-315.0,8.274e-05,2]
[424282890,1780745441000,-500.0,8.275e-05,2]
[424282883,1780745441000,-2000.0,8.219e-05,2]
[424282871,1780745441000,-150.0,7.616e-05,2]
[424282869,1780745441000,-9999.99,7.544e-05,2]
[424282870,1780745441000,-299.99,7.544e-05,2]
[424282875,1780745441000,-160.0,7.655e-05,2]
[424282867,1780745441000,-165.36,7.53e-05,2]
[424282877,1780745441000,-255.0,7.764e-05,2]
[424282876,1780745441000,-150.0,7.69e-05,2]
[424282868,1780745441000,-150.0,7.542e-05,2]
[424282862,1780745441000,-150.0,7.523e-05,2]
[424282866,1780745441000,-1181.55819316,7.529e-05,2]
[424282863,1780745441000,-354.94534881,7.524e-05,2]
[424282864,1780745441000,-2563.363,7.525e-05,2]
[424282865,1780745441000,-167.857,7.525e-05,2]
[424282859,1780745441000,-1613377.16820445,7.424e-05,2]
[424282861,1780745441000,-1260.95450468,7.522e-05,2]
[424282860,1780745441000,-300.0,7.522e-05,2]
[424282872,1780745441000,-150.99,7.628e-05,2]
[424282889,1780745441000,-250.0,8.275e-05,2]
[424282887,1780745441000,-4000.0,8.275e-05,2]
[424282894,1780745441000,-500.0,8.275e-05,2]